[Event "Krakow Championship-A 2022"]
[Site "Krakow"]
[Date "2022.06.26"]
[Round "3.1"]
[White "Pechac, Jergus"]
[Black "Warakomski, Tomasz"]
[Result "0-1"]
[ECO "E54"]
[WhiteElo "2597"]
[BlackElo "2534"]
[Annotator "TA"]
[PlyCount "160"]
[EventDate "2022.06.25"]
[EventType "swiss"]
[EventCountry "POL"]
[SourceTitle "playchess.com"]
[Source "ChessBase"]
[SourceQuality "1"]
[TimeControl "40/5400+30:1800+30"]

{[%evp 17,160,5,6,-1,0,-10,18,20,18,14,10,9,28,37,28,29,23,14,21,19,39,29,31,26,42,31,43,39,86,14,31,22,15,14,55,8,57,57,56,22,138,41,43,44,40,49,27,36,48,41,52,44,41,15,27,15,23,9,24,0,7,0,3,0,0,0,0,-8,-8,-8,-8,-54,-60,-54,-62,-62,-58,-60,-68,-67,-48,-49,-35,-112,-112,-112,-112,-112,-102,-172,-177,-181,-164,-175,-182,-175,-168,-178,-170,-178,-187,-195,-189,-195,-188,-658,-650,-650,-644,-637,-616,-658,-602,-720,-739,-709,-639,-724,-601,-1342,-945,-1301,-1172,-844,-827,-1060,-804,-1120,-595,-29944,-5002,-29963,-29961,-29961,-29963,-29953,-29950,-10431,-8568,-8593,-8494,-8494,-4618,-4610,-4562]} 1. d4 {[%emt 0:00:03]} Nf6 {[%emt 0:07:24]} 2. c4 {[%emt 0:00:04]} e6 {[%emt 0:00:03]} 3. Nc3 {[%emt 0:00:06]} Bb4 {[%emt 0:00:20]} 4. e3 {[%emt 0:00:06][%cal Be2e3,Be3d4][%mdl 32]} O-O {[%emt 0:00:21]} 5. Bd3 {[%emt 0:00:05]} d5 {[%emt 0:01:28]} 6. Nf3 {[%emt 0:00:07]} dxc4 {[%emt 0:00:43]} 7. Bxc4 {[%emt 0:00:06]} c5 {[%emt 0:00:02]} 8. O-O {[%emt 0:00:09]} cxd4 {[%emt 0:00:14]} 9. exd4 {[%emt 0:00:06]} b6 {[%emt 0:00:04]} 10. Qa4 {[%emt 0:00:08] E54: Nimzo-Indian: Rubinstein: Main Line: 7...dxc4 8 Bxc4.} Be7 {[%emt 0:05:14]} 11. Be3 {[%emt 0:00:09] [#]} Qe8 $146 {[%emt 0:08:49]} ({Predecessor:} 11... Bb7 12. Ne5 a6 13. Qb3 b5 14. Nxf7 Rxf7 15. Bxe6 Qe8 16. Rfe1 Bc8 17. Bxf7+ Qxf7 {1-0 (44) Van Foreest,J (2682)-Huschenbeth,N (2612) Linares 2020}) 12. Qxe8 {[%emt 0:14:34] The position is equal.} Rxe8 {[%emt 0:00:22]} 13. d5 {[%emt 0:00:15]} exd5 {[%emt 0:13:11]} 14. Nxd5 {[%emt 0:00:17]} Be6 {[%emt 0:00:15]} 15. Nxe7+ {[%emt 0:00:18]} Rxe7 {[%emt 0:00:04]} 16. Bb5 {[%emt 0:02:21]} Bd7 {[%emt 0:00:16]} 17. Bd3 {[%emt 0:00:35]} Nc6 {[%emt 0:02:51]} 18. Rfc1 {[%emt 0:10:52]} Nb4 {[%emt 0:11:59]} 19. Bf1 {[%emt 0:02:12]} Nbd5 {[%emt 0:06:11]} 20. Bd4 {[%emt 0:00:48]} Rae8 {[%emt 0:00:05]} 21. h3 {[%emt 0:04:31]} Ne4 {[%emt 0:01:18]} 22. Rd1 {[%emt 0:08:45][%cal Od4g7]} Nb4 {[%emt 0:01:28] [#]} (22... f6 $14 {should be considered.}) 23. Ne1 {[%emt 0:03:01]} ({Better is} 23. Be5 $1 $16) 23... Bc6 $11 {[%emt 0:04:28]} 24. a3 {[%emt 0:03:33]} Nd5 {[%emt 0:00:07]} 25. Nf3 {[%emt 0:02:17]} Nd6 {[%emt 0:04:09] Against Bc4} (25... Ba4 $5 {[%cal Ra4d1]}) 26. Rac1 {[%emt 0:01:57]} (26. b4 $14) 26... Bb7 {[%emt 0:04:32]} (26... Ba4 $11) 27. b4 $14 {[%emt 0:08:17]} Nf5 {[%emt 0:12:53]} 28. Bb5 {[%emt 0:00:15]} Nf4 {[%emt 0:00:58] [#]} 29. Bxe8 {[%emt 0:02:51] A strong pair of Bishops.} (29. Be3 $1 $16 {[%cal Re3f4]} Nxe3 30. fxe3 Bxf3 31. gxf3 Rxe3 32. Bxe8 Rxe8 33. Re1) 29... Ne2+ {[%emt 0:04:26]} 30. Kh2 $1 {[%emt 0:00:07]} Nxc1 {[%emt 0:00:20]} 31. Bb5 {[%emt 0:06:21]} Bxf3 {[%emt 0:01:19]} 32. Rxc1 {[%emt 0:00:11] Rc8+ would kill now.} Bb7 {[%emt 0:00:08] Prevents Rc8+.} 33. Bb2 {[%emt 0:01:12]} f6 {[%emt 0:01:52]} 34. Rd1 {[%emt 0:01:43]} Rc7 {[%emt 0:01:06]} 35. Rd8+ {[%emt 0:00:09]} Kf7 {[%emt 0:00:07]} 36. Bd3 {[%emt 0:00:36]} Nh4 {[%emt 0:01:16]} 37. f3 {[%emt 0:01:42]} Ng6 {[%emt 0:01:21]} 38. Kg3 {[%emt 0:09:57]} h6 {[%emt 0:01:52]} 39. a4 {[%emt 0:04:03]} Ne7 {[%emt 0:00:10]} 40. h4 {[%emt 0:03:43]} Nc6 {[%emt 0:04:55][%csl LRb4,LRd8]} 41. Bc4+ {[%emt 0:30:07]} Kg6 {[%emt 0:30:07]} 42. Rf8 {[%emt 0:02:12] White threatens Bd3+ and mate.} Nxb4 {[%emt 0:00:00]} 43. Bf7+ {[%emt 0:00:00]} Kf5 {[%emt 0:00:00]} (43... Rxf7 $2 44. h5+ Kxh5 45. Rxf7 $18) 44. Ba3 {[%emt 0:00:00]} (44. h5 $11) 44... a5 $15 {[%emt 0:00:00]} 45. h5 {[%emt 0:00:00]} Ke5 {[%emt 0:00:00]} 46. Bb2+ {[%emt 0:00:00]} Kd6 {[%emt 0:00:00]} 47. Bg6 $1 {[%emt 0:00:00]} Bc6 {[%emt 0:00:00]} 48. Bc1 {[%emt 0:00:00]} Rb7 {[%emt 0:00:00]} (48... Bxa4 $2 49. Bf4+ Kc6 50. Be4+ Kc5 51. Bxc7 $18) 49. Bf4+ {[%emt 0:00:00]} Ke6 {[%emt 0:00:00]} 50. Kg4 {[%emt 0:00:00] White is now going downhill.} (50. Rd8 $15) 50... Bxa4 $17 {[%emt 0:00:00]} 51. Bf5+ {[%emt 0:00:00]} Ke7 {[%emt 0:00:00]} 52. Rg8 {[%emt 0:00:00]} Kf7 {[%emt 0:00:00]} 53. Rh8 {[%emt 0:00:00] [#]} (53. Rd8 $17 Nc6 54. Bg6+ Ke7 55. Re8+ Kd7 56. Rh8) 53... Nd5 $1 $19 {[%emt 0:00:00]} 54. Bxh6 {[%emt 0:03:30]} Bd7 {[%emt 0:00:00] Strongly threatening ...Bxf5+.} 55. Bc1 {[%emt 0:00:18]} Bxf5+ {[%emt 0:00:00]} 56. Kxf5 {[%emt 0:00:01][%mdl 4096] Endgame KRB-KRN} b5 {[%emt 0:00:00][%cal Bb6b5,Bb5b4][%mdl 32]} 57. Ke4 {[%emt 0:02:35]} Nc3+ {[%emt 0:00:37]} 58. Kd3 {[%emt 0:00:02]} b4 {[%emt 0:00:44]} 59. h6 {[%emt 0:01:50]} Rd7+ {[%emt 0:01:03]} 60. Kc4 {[%emt 0:00:06]} Rc7+ {[%emt 0:01:17]} 61. Kb3 $2 {[%emt 0:00:35]} (61. Kd3) 61... a4+ {[%emt 0:00:42]} 62. Kxb4 {[%emt 0:00:16]} Na2+ {[%emt 0:00:30]} 63. Kxa4 {[%emt 0:11:19]} Nxc1 {[%emt 0:00:06] KRN-KR} ({And not} 63... Ra7+ 64. Kb5 Nxc1 65. Rc8 gxh6 66. Rxc1 $11) 64. Ka3 {[%emt 0:00:36]} Kg6 {[%emt 0:01:12]} 65. hxg7 {[%emt 0:00:29]} Kxg7 {[%emt 0:00:06]} 66. Rd8 {[%emt 0:00:31]} Ne2 {[%emt 0:00:16]} 67. Kb3 {[%emt 0:00:25]} Kf7 {[%emt 0:01:19] Hoping for ...Nf4.} 68. Rh8 {[%emt 0:00:25] Threatens to win with Rh7+.} Rc5 {[%emt 0:00:53]} 69. Kb4 {[%emt 0:00:16]} Rc2 {[%emt 0:00:37] And now ...Ng3 would win.} 70. Rh7+ {[%emt 0:00:45]} Kg6 {[%emt 0:00:19]} 71. Rh4 {[%emt 0:00:03]} f5 {[%emt 0:02:12]} 72. Kb3 {[%emt 0:00:37]} Rd2 {[%emt 0:00:07] aiming for ...Ng3.} 73. Kc4 {[%emt 0:00:59]} Ng3 {[%emt 0:00:57]} (73... Kg5 $142 74. Rh1 Ng3 75. Rg1 f4 76. Kc5 Kh4 77. Ra1 Rxg2 78. Ra4 Kg5 79. Kd5 Rd2+ 80. Kc4 Rc2+ 81. Kb4 Re2 82. Ra5+ Kh4 83. Ra8 Re3 84. Rf8 Rxf3 85. Rf7 Ne2 86. Rf8 Re3 87. Rf7 f3 88. Rf8 Kg3 89. Kb5 Rc3 90. Rg8+ Kh3 91. Rh8+ Kg3 92. Rg8+ Kh2 93. Rh8+ Kg2 94. Rg8+ Ng3 95. Ra8 f2 96. Ra2 Kf3 97. Ra1 Ne2 98. Rd1 Rc1 99. Rxc1 Nxc1 100. Kc4 f1=Q+ 101. Kd5 Qd3+ 102. Kc6 Nb3 103. Kb7 Qd7+ 104. Kb6 Kg2 105. Ka6 Qc6+ 106. Ka7 Nc5 107. Kb8 Qb7#) 74. Rh2 {[%emt 0:00:07]} Kg5 {[%emt 0:02:15]} 75. Kc3 {[%emt 0:00:06]} Rd1 {[%emt 0:00:20]} 76. Rh8 {[%emt 0:01:05]} Kf4 {[%emt 0:00:15]} 77. Ra8 {[%emt 0:00:41]} Ke3 {[%emt 0:00:34] Black is clearly winning.} 78. Ra2 {[%emt 0:00:18]} Ne2+ {[%emt 0:00:27]} 79. Kc4 {[%emt 0:00:06]} Rc1+ {[%emt 0:00:04]} 80. Kb4 {[%emt 0:00:11]} f4 {[%emt 0:00:10] Weighted Error Value: White=0.13 (very precise) /Black=0.11 (very precise)} 0-1

[Event "Krakow Championship-A 2022"]
[Site "Krakow"]
[Date "2022.06.26"]
[Round "3.2"]
[White "Nguyen, Piotr"]
[Black "Agdestein, Simen"]
[Result "0-1"]
[ECO "A02"]
[WhiteElo "2402"]
[BlackElo "2559"]
[Annotator "TA"]
[PlyCount "73"]
[EventDate "2022.06.25"]
[EventType "swiss"]
[EventCountry "POL"]
[SourceTitle "playchess.com"]
[Source "ChessBase"]
[SourceQuality "1"]
[TimeControl "40/5400+30:1800+30"]

{[%evp 11,73,2,12,-11,2,-13,-9,-36,-13,-18,-11,-25,-30,-22,-14,-11,0,-65,-44,-154,-148,-135,-74,-156,-123,-153,-89,-102,-97,-247,-239,-222,-210,-222,-210,-221,-227,-253,-232,-164,-231,-223,-210,-203,-205,-229,-233,-215,-227,-285,-154,-121,-6,-1,51,0,30,-8,-20,-39,0,0,0,-42]} 1. f4 {[%emt 0:00:03]} c5 {[%emt 0:03:34]} 2. Nf3 {[%emt 0:00:08]} Nc6 {[%emt 0:00:30]} 3. g3 {[%emt 0:00:07]} d5 {[%emt 0:03:50]} 4. Bg2 {[%emt 0:00:13]} e6 {[%emt 0:02:36]} 5. O-O {[%emt 0:01:03]} Nf6 {[%emt 0:02:32]} 6. d3 {[%emt 0:03:32]} Be7 {[%emt 0:03:49]} 7. e3 {[%emt 0:08:07] A03: Bird's Opening with 1...d5.} O-O {[%emt 0:01:17]} 8. Qe2 {[%emt 0:01:18]} b5 {[%emt 0:02:55]} 9. Nbd2 {[%emt 0:10:32] [#]} a5 $146 {[%emt 0:13:11]} ({Predecessor:} 9... Qc7 10. e4 Re8 11. c3 Bb7 12. e5 Nd7 13. d4 b4 14. f5 cxd4 15. cxd4 Qb6 16. fxe6 fxe6 {0-1 (31) Dietz,J (2320)-Nissen,C (2310) Germany 1994}) 10. a4 {[%emt 0:02:23]} bxa4 {[%emt 0:02:25]} 11. e4 {[%emt 0:08:08]} Nd7 {[%emt 0:08:33]} 12. Rxa4 {[%emt 0:08:27]} Nb6 {[%emt 0:00:33]} 13. Ra1 {[%emt 0:00:31]} a4 {[%emt 0:09:28]} 14. g4 {[%emt 0:06:22]} ({White should try} 14. exd5 $11 exd5 15. Re1) 14... Ba6 {[%emt 0:02:11]} 15. f5 {[%emt 0:07:14]} (15. exd5 $15 exd5 16. Qf2) 15... exf5 {[%emt 0:06:29]} 16. gxf5 {[%emt 0:00:34]} Nb4 {[%emt 0:06:01]} (16... c4 $142 $1 {[%cal Rc4d3] And now ...cxd3 would win.} 17. exd5 cxd3 18. cxd3 Nxd5) 17. Ne1 {[%emt 0:01:48]} (17. Qd1 $142) 17... c4 $17 {[%emt 0:00:42][%cal Ob4c2,Bc5c4,Bc4d3][%mdl 32] aiming for ...Nxc2!} 18. e5 {[%emt 0:14:20] [#]} f6 {[%emt 0:09:30]} (18... Nxc2 $142 $1 {[%mdl 512]} 19. Nxc2 cxd3) 19. Ndf3 {[%emt 0:11:23]} fxe5 {[%emt 0:00:41]} 20. Qxe5 {[%emt 0:04:25]} (20. Nxe5 $17 Qc7 21. Qe3) 20... cxd3 $19 {[%emt 0:07:16]} 21. c3 {[%emt 0:09:44]} Nc6 {[%emt 0:05:56] Active counter play!} 22. Qe6+ {[%emt 0:00:09]} Kh8 {[%emt 0:01:01][%cal Od3d2] Threatens to win with ...d2!} 23. Qxc6 {[%emt 0:00:04]} Rf6 {[%emt 0:00:14][%mdl 64] Trapped Piece} 24. Ne5 {[%emt 0:01:13]} Rxc6 {[%emt 0:05:00]} 25. Nf7+ {[%emt 0:00:04] Pair of Knights!} Kg8 {[%emt 0:00:01]} 26. Nxd8 {[%emt 0:00:04]} Bc5+ {[%emt 0:01:13]} ({Not} 26... Bxd8 27. Rf3 $15) 27. Kh1 {[%emt 0:00:23]} Rxd8 {[%emt 0:00:25][%cal Ba8d8,Bd8e8,Be8e4][%mdl 32]} 28. Rf3 {[%emt 0:01:11]} Re8 {[%emt 0:01:18]} 29. Bf4 {[%emt 0:00:26]} Re4 {[%emt 0:00:50]} 30. Rd1 {[%emt 0:00:52] [#]} a3 {[%emt 0:00:43]} (30... d2 $1 $19 {[%cal Rd2e1]} 31. Bxd2 Be2) 31. bxa3 $17 {[%emt 0:00:25] [#]} Na4 {[%emt 0:00:37]} ({Stronger than} 31... Bxa3 32. Bd2 $15) (31... d2 $1 $17 {[%cal Rd2e1]} 32. Bxd2 Be2) 32. Nxd3 $11 {[%emt 0:00:42]} Bxa3 {[%emt 0:00:25]} (32... Nxc3 $11 33. Nxc5 Nxd1 34. Nxe4 dxe4) 33. Nf2 {[%emt 0:00:32]} (33. Ra1 $14 Rb6 34. f6) 33... Be2 {[%emt 0:00:39]} 34. Ra1 {[%emt 0:00:29]} (34. Nxe4 $5 {[%cal Rd1d5]} Bxd1 35. Rd3 dxe4 36. Bxe4 $14) 34... Bb2 {[%emt 0:00:33]} 35. Nxe4 {[%emt 0:00:20]} Bxf3 {[%emt 0:00:31]} 36. Rxa4 {[%emt 0:00:32]} dxe4 {[%emt 0:00:25]} 37. c4 {[%emt 0:00:00] Whites escaped into a draw.  Weighted Error Value: White=0.29 (precise) /Black=0.21 (precise)} 0-1

[Event "Krakow Championship-A 2022"]
[Site "Krakow"]
[Date "2022.06.26"]
[Round "3.3"]
[White "Nurkiewicz, Maciej"]
[Black "Romanishin, Oleg M"]
[Result "1/2-1/2"]
[ECO "C85"]
[WhiteElo "2332"]
[BlackElo "2400"]
[Annotator "TA"]
[PlyCount "69"]
[EventDate "2022.06.25"]
[EventType "swiss"]
[EventCountry "POL"]
[SourceTitle "playchess.com"]
[Source "ChessBase"]
[SourceQuality "1"]
[TimeControl "40/5400+30:1800+30"]

{[%evp 17,69,0,20,16,22,19,20,21,41,0,0,0,0,0,0,0,0,0,0,0,14,0,13,0,10,4,6,0,2,0,13,0,0,0,0,0,0,-90,-75,-140,-138,-152,-144,-146,-128,-117,-149,-145,-97,-101,-105,-103,-105,-121]} 1. e4 {[%emt 0:00:06]} e5 {[%emt 0:06:48]} 2. Nf3 {[%emt 0:00:07]} Nc6 {[%emt 0:00:04]} 3. Bb5 {[%emt 0:00:20]} a6 {[%emt 0:00:05]} 4. Ba4 {[%emt 0:00:03]} Nf6 {[%emt 0:00:05]} 5. O-O {[%emt 0:00:09]} Be7 {[%emt 0:00:02]} 6. Bxc6 {[%emt 0:00:24]} dxc6 {[%emt 0:00:08]} 7. d3 {[%emt 0:00:06]} Nd7 {[%emt 0:01:35]} 8. b3 {[%emt 0:00:15]} O-O {[%emt 0:03:08]} 9. Bb2 {[%emt 0:00:07]} Bf6 {[%emt 0:03:49]} 10. Nbd2 {[%emt 0:00:57] C85: Closed Ruy Lopez: Deferred Exchange Variation.} b5 {[%emt 0:02:12]} 11. Re1 {[%emt 0:15:47]} Re8 {[%emt 0:01:40]} 12. Nf1 {[%emt 0:02:53] [#] The position is equal.} Nf8 $146 {[%emt 0:04:41]} ({Predecessor:} 12... c5 13. a4 Rb8 14. axb5 axb5 15. Ne3 g6 16. Ra7 c6 17. Ng4 Bg7 18. Qd2 h5 {1-0 (53) Sarwat,W (2397)-Bjarnason,S (2262) Reykjavik 2007}) 13. d4 {[%emt 0:06:03]} Bg4 {[%emt 0:00:30]} 14. dxe5 {[%emt 0:15:30]} Qxd1 {[%emt 0:00:11]} 15. Raxd1 {[%emt 0:00:04]} Bxf3 {[%emt 0:00:16]} 16. gxf3 {[%emt 0:00:06]} Bxe5 {[%emt 0:00:08]} 17. Bxe5 {[%emt 0:00:09]} Rxe5 {[%emt 0:00:10]} 18. Ne3 {[%emt 0:07:56]} h5 {[%emt 0:06:33]} 19. Nf5 {[%emt 0:14:32]} Rae8 {[%emt 0:06:41]} 20. Re3 {[%emt 0:04:38]} Rc5 {[%emt 0:22:28]} 21. c3 {[%emt 0:06:13]} a5 {[%emt 0:01:21]} 22. h4 {[%emt 0:03:17]} b4 {[%emt 0:05:37]} 23. c4 {[%emt 0:03:43]} a4 {[%emt 0:00:17]} 24. Kh2 {[%emt 0:00:21]} ({Don't play} 24. bxa4 g6 25. Ng3 Rxc4 $17) 24... axb3 {[%emt 0:03:55]} 25. axb3 {[%emt 0:00:05]} Ra5 {[%emt 0:00:07]} 26. Red3 {[%emt 0:05:06]} c5 {[%emt 0:15:25]} 27. Kg3 {[%emt 0:03:11]} (27. Rd8 $11 Rxd8 28. Rxd8) 27... Ra3 {[%emt 0:02:05]} 28. Rd8 {[%emt 0:05:27]} (28. Ne3 $142) 28... Rxd8 $1 $17 {[%emt 0:00:15]} 29. Rxd8 {[%emt 0:00:05][%mdl 4096] Endgame KRN-KRN} g6 $1 {[%emt 0:00:36]} 30. Ne7+ {[%emt 0:00:05]} Kg7 {[%emt 0:00:05]} 31. Rd3 {[%emt 0:00:38]} Ne6 {[%emt 0:00:51] And now ...Nd4 would win.} 32. Nc6 {[%emt 0:01:06] [#] Inhibits Nd4.} Ra6 {[%emt 0:05:59]} (32... Ra1 $142 $1 33. Rd7 Rg1+ 34. Kh2 Rb1) 33. Nd8 {[%emt 0:00:51] [#] Black is better.} Rd6 {[%emt 0:01:39]} ({Much weaker is} 33... Nd4 $6 34. Nb7 $15) 34. Nxe6+ {[%emt 0:03:54]} fxe6 {[%emt 0:00:06]} 35. Re3 {[%emt 0:00:56] Weighted Error Value: White=0.14 (very precise) /Black=0.06 (flawless)} 1/2-1/2

[Event "Krakow Championship-A 2022"]
[Site "Krakow"]
[Date "2022.06.26"]
[Round "3.4"]
[White "Kozak, Antoni"]
[Black "Skytte, Rasmus"]
[Result "1/2-1/2"]
[ECO "A06"]
[WhiteElo "2459"]
[BlackElo "2357"]
[Annotator "TA"]
[PlyCount "91"]
[EventDate "2022.06.25"]
[EventType "swiss"]
[EventCountry "POL"]
[SourceTitle "playchess.com"]
[Source "ChessBase"]
[SourceQuality "1"]
[TimeControl "40/5400+30:1800+30"]

{[%evp 9,91,9,6,0,0,-15,-7,-13,-15,-19,0,0,0,0,27,22,36,38,58,49,64,56,65,43,61,53,65,19,66,17,20,28,77,81,75,68,68,66,85,83,79,70,101,100,89,85,93,95,97,97,105,55,43,43,50,37,51,35,50,45,41,0,0,0,43,0,0,0,0,0,0,0,0,0,0,0,0,0,0,0,0,0,0,0]} 1. Nf3 {[%emt 0:00:03]} d5 {[%emt 0:03:17]} 2. e3 {[%emt 0:00:06]} Nf6 {[%emt 0:00:55]} 3. c4 {[%emt 0:00:07]} e6 {[%emt 0:00:41]} 4. b3 {[%emt 0:00:04]} Nbd7 {[%emt 0:01:48]} 5. Bb2 {[%emt 0:03:56]} Bd6 {[%emt 0:02:05]} 6. Nc3 {[%emt 0:11:27] A13: English Opening: 1...e6.} O-O $1 {[%emt 0:01:18][%mdl 4] is currently scoring better than 6...c6.} 7. cxd5 {[%emt 0:08:53]} exd5 {[%emt 0:01:05]} 8. Nb5 {[%emt 0:00:10]} Be7 {[%emt 0:04:10] [#]} 9. g3 $146 {[%emt 0:00:16]} ({Predecessor:} 9. Qc2 c6 10. Nbd4 Re8 11. Be2 g6 12. Ng5 c5 13. Ndf3 h6 14. Ne6 Qb6 15. Nf4 {0-1 (37) Hertneck,G (2496)-Gajewski,G (2630) Germany 2018}) 9... c6 {[%emt 0:05:33]} 10. Nbd4 {[%emt 0:00:37]} Nc5 {[%emt 0:01:12]} 11. Qc2 {[%emt 0:05:33]} Nce4 {[%emt 0:06:11]} 12. Bg2 {[%emt 0:04:08]} c5 {[%emt 0:03:43]} 13. Ne2 {[%emt 0:05:04]} Bf5 {[%emt 0:03:19][%cal Oe4g3] [#] Hoping for ...Nxg3!} 14. Nh4 {[%emt 0:02:19]} Bd7 {[%emt 0:07:37][%cal Oc5c4]} 15. O-O {[%emt 0:07:29]} ({Much weaker is} 15. f3 Nd6 16. f4 Rc8 $11) 15... Rc8 {[%emt 0:04:23]} 16. d3 {[%emt 0:12:41] Against c4} (16. Nf4 $5 {[%cal Rf4d5]}) 16... Nd6 {[%emt 0:02:16]} 17. e4 {[%emt 0:01:45][%cal Be3e4,Be4e5][%mdl 32]} Ng4 {[%emt 0:04:49]} 18. Nf3 {[%emt 0:02:50]} (18. h3 $14 {deserves consideration.} Bxh4 19. hxg4 (19. gxh4 Nh6 $14)) 18... c4 {[%emt 0:04:04]} (18... dxe4 $1 $11 19. dxe4 c4) 19. Qc3 {[%emt 0:11:08]} (19. e5 $14 cxd3 20. Qxd3) 19... Bf6 $11 {[%emt 0:03:08]} 20. e5 {[%emt 0:00:13]} Nb5 {[%emt 0:01:50]} (20... Re8 $11) 21. Qd2 {[%emt 0:02:40]} c3 {[%emt 0:05:26]} 22. Bxc3 {[%emt 0:07:33]} Nxc3 {[%emt 0:01:28][%mdl 64] [#] Remove Defender} 23. Nxc3 {[%emt 0:00:03]} Nxe5 {[%emt 0:07:21]} 24. Nxe5 {[%emt 0:00:35]} Bxe5 {[%emt 0:00:11] This bishop pair is nice.} 25. d4 {[%emt 0:00:08]} Bf6 {[%emt 0:06:17]} 26. Nxd5 {[%emt 0:00:36]} Bg5 {[%emt 0:01:02]} 27. Qd3 {[%emt 0:03:41]} Bc6 {[%emt 0:05:14]} 28. Ne3 {[%emt 0:03:49] 0x0.001e64b5d3e0dp-1022s more active pieces.} Bxg2 {[%emt 0:00:36]} 29. Kxg2 {[%emt 0:00:51]} Qa5 {[%emt 0:01:44]} 30. Nc4 {[%emt 0:02:22]} (30. Rfe1 $16) 30... Qd5+ $14 {[%emt 0:01:40]} 31. Qf3 {[%emt 0:00:02]} Rfd8 {[%emt 0:01:28]} 32. Rad1 {[%emt 0:01:25]} Bf6 {[%emt 0:00:55]} 33. Rfe1 {[%emt 0:03:21][%cal Oe1e8,Bf1e1,Be1e7,Be7b7][%mdl 32] Black must now prevent Re8+!} Qxf3+ {[%emt 0:06:47]} 34. Kxf3 {[%emt 0:00:02]} Bxd4 {[%emt 0:01:24]} 35. Re7 {[%emt 0:00:07]} (35. Na5 $5 {[%cal Ra5b7]}) 35... b5 {[%emt 0:00:46]} 36. Ne3 {[%emt 0:00:02]} Bc5 {[%emt 0:01:03]} (36... h5 {is more complex.} 37. Rb7 a6 38. Ke4 Bc5) 37. Rxd8+ {[%emt 0:01:38]} (37. Rc7 $5 Bb6 38. Rxc8 Rxc8 39. Rd5 $14) 37... Rxd8 {[%emt 0:00:09][%mdl 4096] Endgame KRB-KRN. The position is equal.} 38. Rb7 {[%emt 0:00:02]} Bb6 {[%emt 0:00:37]} 39. a4 {[%emt 0:01:42]} bxa4 {[%emt 0:00:49]} 40. bxa4 {[%emt 0:00:01]} h5 {[%emt 0:00:52]} 41. a5 {[%emt 0:01:31]} Bxa5 {[%emt 0:00:17]} 42. Rxa7 {[%emt 0:00:03]} Bb6 {[%emt 0:00:25]} 43. Rb7 {[%emt 0:00:02]} Bxe3 {[%emt 0:00:13]} 44. Kxe3 {[%emt 0:00:03]} g6 {[%emt 0:00:13]} 45. h4 {[%emt 0:00:02]} Kg7 {[%emt 0:00:18]} 46. Ke4 {Weighted Error Value: White=0.08 (flawless) /Black=0.08 (flawless)} 1/2-1/2